Cogmind - Beta 14 @@@ ROGUE MODE // 2024.10.15 @ 20:24:28 // Winter2019/RPGLIKE Player: admiral_len Result: Self-destructed Performance ------------- Evolutions (3) 1500 Regions Visited (4) 800 Robots Destroyed (94) 470 Value Destroyed (3281) 3281 Prototype IDs (1) 20 Alien Tech Used (0) 0 Bonus (327) 327 TOTAL SCORE: 6398 Bonus ------- High Alert Combat Kills 327 Cogmind --------- Core Integrity 1493/1500 Matter 300/300 Energy 500/500 System Corruption 1% Temperature Cool (0) Movement Treading (150) Location -7/Factory Parts ------- > --- POWER (2) -------- Deuterium Engine Deuterium Engine > --- PROPULSION (3) --- Light Treads Advanced Treads Advanced Treads > --- UTILITY (4) ------ Advanced Targeting Computer Hardened Light Armor Plating Improved Light Armor Plating Hardlight Generator > --- WEAPON (3) ------- Gauss Cannon Gauss Cannon Gauss Cannon > --- INVENTORY (3) ---- Gauss Rifle Gauss Rifle Peak State ------------ > --- POWER ------------ Deuterium Engine Deuterium Engine > --- PROPULSION ------- Light Treads Advanced Treads Advanced Treads > --- UTILITY ---------- Advanced Targeting Computer Hardened Light Armor Plating Improved Light Armor Plating Hardlight Generator > --- WEAPON ----------- Gauss Rifle Gauss Rifle Gauss Cannon > --- INVENTORY -------- Heavy Laser Heavy Laser [Rating: 36] Favorites ----------- Power Deuterium Engine Engine Deuterium Engine Power Core Light Nuclear Core Propulsion Light Treads Treads Light Treads Utility Hardened Light Armor Plating Device Hardlight Generator Processor Advanced Targeting Computer Protection Hardened Light Armor Plating Weapon Improved Assault Rifle Energy Gun Medium Laser Ballistic Gun Improved Assault Rifle Ballistic Cannon Assault Cannon Build | -11 -10 -9 -8 -7 ------- Run | Yrd Mat Mat Mat Fac Slots Evolved 8 | 2 . 2 4 . Power 1 | . . . 1 . Propulsion 2 | 1 . . 1 . Utility 3 | . . 2 1 . Weapon 2 | 1 . . 1 . Parts Attached 58 | 5 9 19 17 8 Power 12 | 1 2 3 6 . Engine 8 | 1 2 2 3 . Core 4 | . . 1 3 . Reactor . | . . . . . Propulsion 11 | 2 . 8 1 . Treads 11 | 2 . 8 1 . Leg . | . . . . . Wheel . | . . . . . Hover . | . . . . . Flight . | . . . . . Utility 8 | . 1 4 3 . Device 2 | . 1 1 . . Storage . | . . . . . Processor 2 | . . 1 1 . Hackware . | . . . . . Protection 4 | . . 2 2 . Artifact . | . . . . . Weapon 27 | 2 6 4 7 8 Energy Gun 9 | 2 6 . 1 . Energy Cannon . | . . . . . Ballistic Gun 12 | . . 4 6 2 Ballistic Cannon 6 | . . . . 6 Launcher . | . . . . . Special Weapon . | . . . . . Impact Weapon . | . . . . . Slashing Weapon . | . . . . . Piercing Weapon . | . . . . . Special Melee Weapon . | . . . . . Unidentified Prototypes . | . . . . . Parts Lost . | . . . . . Power . | . . . . . Propulsion . | . . . . . Utility . | . . . . . Weapon . | . . . . . Highest Loss Streak . | . . . . . To Critical Strikes . | . . . . . Average Slot Usage (%) 96 | . 97 93 96 99 Engine 11 | . 16 8 6 16 Core 4 | . . 4 11 . Treads 26 | . 33 26 18 25 Device 8 | . 13 1 9 8 Processor 7 | . . 12 9 8 Protection 9 | . . 10 14 16 Energy Gun 9 | . 32 . . . Ballistic Gun 17 | . . 26 26 17 Ballistic Cannon 1 | . . . . 7 Peak Build Rating 36 | 5 6 20 34 36 Average Rating 18 | 4 5 13 29 34 On Entrance 13 | . 5 6 20 34 Naked Turns . | . . . . . Heaviest Build 52 | 6 10 23 41 52 Greatest Support 64 | 40 40 46 64 64 Greatest Overweight (x) 3 | . . 3 . . Average Overweight (x) . | . . . . . Largest Inventory Capacity 3 | . 2 2 2 3 Average Capacity 1 | . . 2 2 2 Most Carried 3 | . 2 2 2 3 Average Carried 1 | . . 1 1 1 Final Capacity 3 | . 2 2 2 3 Final Carried 2 | . 2 . 2 2 Class Distribution -------------------- 61% | Mutant 38% | Tank Dominant Class ---------------- Mutant | -10/Materials Mutant | -9/Materials Tank | -8/Materials Tank | -7/Factory Resources | -11 -10 -9 -8 -7 ----------- Run | Yrd Mat Mat Mat Fac Matter Collected 2314 | 250 79 688 883 414 Remotely . | . . . . . Salvage Created 2811 | . 360 877 1386 188 Parts 222 | . 28 84 81 29 Haulers Intercepted . | . . . . . Recyclers Shooed 2 | . 2 . . . Parts Field Recycled . | . . . . . Retrieved Matter . | . . . . . Parts Self-Destructed . | . . . . . Prevented . | . . . . . Kills | -11 -10 -9 -8 -7 ------- Run | Yrd Mat Mat Mat Fac Combat Hostiles Destroyed 83 | . 13 31 30 9 Guns 77 | . 10 31 30 6 Cannons 3 | . . . . 3 AOE 1 | . 1 . . . Classes Destroyed 9 | . 5 2 1 1 Worker 2 | . 1 . 1 . Builder 3 | . . 2 . 1 Recycler 1 | . 1 . . . Watcher 5 | . 2 1 1 1 Swarmer 14 | . 3 8 3 . Grunt 46 | . 10 13 17 6 Sentry 19 | . . 10 8 1 Hunter 3 | . . . 2 1 Programmer 1 | . . . . 1 Best Kill Streak 4 | . 3 4 3 4 Combat Bots Only 4 | . 3 4 3 4 Max Kills in Single Turn 2 | . 2 2 1 1 Gunslinging 1 | . . 1 . . Exploded 1 | . 1 . . . Melee . | . . . . . Uniques/NPCs Destroyed . | . . . . . Combat | -11 -10 -9 -8 -7 -------- Run | Yrd Mat Mat Mat Fac Hostile Shots Fired 424 | . 74 133 143 74 Missed 111 | . 22 32 38 19 Damage Taken 3525 | . 871 1260 951 443 Core 2555 | . 712 909 633 301 Absorbed by Shields 540 | . . . 348 192 Redirected to Core 2142 | . 548 775 556 263 Ignored by Resistances 610 | . 4 161 277 168 Regen/Repaired (Parts) 90 | . 47 . 43 . Core Remaining (%) 89 | 100 79 86 91 . Volleys Fired 212 | . 46 72 68 26 Largest 3 | . 2 2 3 3 Hottest 116 | . 100 46 78 116 Shots Fired 513 | . 91 144 200 78 Gun 493 | . 91 144 200 58 Cannon 20 | . . . . 20 Launcher . | . . . . . Special . | . . . . . Kinetic 422 | . . 144 200 78 Thermal 91 | . 91 . . . Explosive . | . . . . . Electromagnetic . | . . . . . Robot Hit Streak 69 | . 27 55 69 25 Robot Miss Streak 3 | . 3 3 2 2 Penetration Max 1 | . . . . 1 Secondary Targets 9 | . 2 4 2 1 Max Gunslinging Chain 1 | . 1 1 1 1 Shots Hit Robots 425 | . 74 122 166 63 Core Hits 176 | . 28 57 69 22 Critical Kills . | . . . . . Critical Parts Destroyed . | . . . . . Critical Strikes 6 | . 5 1 . . Burn 5 | . 5 . . . Destroy 1 | . . 1 . . Melee Attacks . | . . . . . Impact . | . . . . . Slashing . | . . . . . Piercing . | . . . . . Sneak Attacks . | . . . . . Combat Hostiles . | . . . . . Follow-up Attacks . | . . . . . Damage Inflicted 7072 | . 950 1999 2879 1244 Guns 6754 | . 939 1990 2849 976 Cannons 257 | . . . . 257 Explosions . | . . . . . Melee . | . . . . . Ramming 61 | . 11 9 30 11 Kinetic 6072 | . . 1990 2849 1233 Thermal 939 | . 939 . . . Explosive . | . . . . . Electromagnetic . | . . . . . Impact . | . . . . . Slashing . | . . . . . Piercing . | . . . . . Highest Corruption 1 | . 1 . . 1 Average Corruption 1 | . 1 . . 1 Corruption Purged . | . . . . . Corruption Blocked . | . . . . . Effects 7 | . 4 . . 3 Message Errors 1 | . . . . 1 Matter Fused 1 | . 1 . . . Parts Rejected 1 | . 1 . . . Parts Fused 1 | . 1 . . . Data Loss (minor) 2 | . 1 . . 1 Data Loss (major) 1 | . . . . 1 Overload Shots . | . . . . . Overflow Damage . | . . . . . Projectiles . | . . . . . Explosions . | . . . . . Melee . | . . . . . Knockbacks . | . . . . . Impact . | . . . . . Kinetic . | . . . . . Secondary . | . . . . . Self-Inflicted Damage . | . . . . . Shots . | . . . . . Rammed 12 | . 4 1 6 1 Targets Rammed 14 | . 4 3 6 1 Kicked . | . . . . . Crushed 2 | . . 2 . . Highest Temperature 228 | . 30 14 62 228 Average Temperature 41 | . 13 7 13 78 Received Heat Transfer 1525 | . 285 459 531 250 Siege Activations . | . . . . . Robots Corrupted . | . . . . . Combat Hostiles . | . . . . . Parts Fried . | . . . . . Impact Corruptions . | . . . . . Robots Melted 2 | . 2 . . . Combat Hostiles 2 | . 2 . . . Parts Melted 12 | . 12 . . . Heat Transferred 3062 | . 3062 . . . Parts Sabotaged . | . . . . . Parts Stolen . | . . . . . Parts Stripped . | . . . . . Power Chain Reactions . | . . . . . Alert | -11 -10 -9 -8 -7 ------- Run | Yrd Mat Mat Mat Fac Peak Influence 652 | . 112 595 652 427 Initial 296 | . . 3 215 296 Average 288 | . 49 377 437 326 Maximum Alert Level 2 | . . 2 2 2 Low Security (%) 33 | 100 100 12 . . Level 1 32 | . . 43 36 68 Level 2 34 | . . 43 63 31 Level 3 . | . . . . . Level 4 . | . . . . . Level 5 . | . . . . . High Security . | . . . . . Max Security . | . . . . . Squads Dispatched 14 | . 2 2 4 6 Investigation 3 | . 1 . 1 1 Extermination 1 | . . . . 1 Reinforcement 6 | . 1 2 2 1 Assault 1 | . . . 1 . Garrison 3 | . . . . 3 Intercept . | . . . . . Searches Triggered . | . . . . . Construction Impeded . | . . . . . Haulers Reinforced . | . . . . . Active Scanning Responses . | . . . . . Cargo Convoy Interrupts . | . . . . . Stealth | -11 -10 -9 -8 -7 --------- Run | Yrd Mat Mat Mat Fac Distress Signals 6 | . . 5 1 . Communications Jammed . | . . . . . Distress Signals . | . . . . . Times Spotted 126 | . 18 47 47 14 Peak Tracking Total 8 | . 3 8 7 4 Tactical Retreats 9 | . 1 4 3 1 Traps | -11 -10 -9 -8 -7 ------- Run | Yrd Mat Mat Mat Fac Traps Triggered 8 | . 3 3 1 1 Indirectly . | . . . . . Trap Hack Attempts . | . . . . . Triggered . | . . . . . Disarmed . | . . . . . Reprogrammed . | . . . . . Reused . | . . . . . Traps Extracted . | . . . . . Installed . | . . . . . Triggered . | . . . . . Machines | -11 -10 -9 -8 -7 ---------- Run | Yrd Mat Mat Mat Fac Machines Disabled 1 | . . . . 1 Max in Single Turn 1 | . . . . 1 Machines Repaired . | . . . . . Machines Dismantled . | . . . . . Machines Sabotaged . | . . . . . Overloaded Fab Kills . | . . . . . Hacking | -11 -10 -9 -8 -7 --------- Run | Yrd Mat Mat Mat Fac Machines Accessed 9 | . 5 2 1 1 Terminals 4 | . 2 1 . 1 Fabricators . | . . . . . Repair Stations 2 | . 1 . 1 . Recycling Units 2 | . 2 . . . Scanalyzers 1 | . . 1 . . Garrison Access . | . . . . . Total Hacks 17 | . 9 2 2 4 Successful 11 | . 7 2 2 . Failed 6 | . 2 . . 4 Catastrophic . | . . . . . Database Lockouts . | . . . . . Manual . | . . . . . Terminals 8 | . 3 1 . 4 Fabricators . | . . . . . Repair Stations 5 | . 3 . 2 . Recycling Units 3 | . 3 . . . Scanalyzers 1 | . . 1 . . Garrison Access . | . . . . . Terminal Hacks 3 | . 2 1 . . Record 1 | . 1 . . . Locate Traps 1 | . 1 . . . Zone Layout 1 | . . 1 . . Fabricator Hacks . | . . . . . Repair Station Hacks 4 | . 2 . 2 . Scan Component 2 | . 1 . 1 . Repair 2 | . 1 . 1 . Recycling Unit Hacks 3 | . 3 . . . Report Inventory 2 | . 2 . . . Retrieve Components 1 | . 1 . . . Scanalyzer 1 | . . 1 . . Insert Component 1 | . . 1 . . Garrison Access Hacks . | . . . . . Unauthorized Hacks . | . . . . . Terminals . | . . . . . Fabricators . | . . . . . Repair Stations . | . . . . . Recycling Units . | . . . . . Scanalyzers . | . . . . . Garrison Access . | . . . . . Data Cores Recovered . | . . . . . Used . | . . . . . Hacking Detections 2 | . 1 . . 1 Full Trace Events 1 | . . . . 1 Feedback Events . | . . . . . Feedback Blocked . | . . . . . Robot Schematics Acquired . | . . . . . Robots Built . | . . . . . Authchips . | . . . . . Time . | . . . . . Total Robot Build Rating . | . . . . . Part Schematics Acquired . | . . . . . Parts Built . | . . . . . Authchips . | . . . . . Time . | . . . . . Total Part Build Rating . | . . . . . Parts Repaired 2 | . 1 . 1 . Time 70 | . 26 . 44 . Parts Recycled . | . . . . . Recycled Matter . | . . . . . Retrieved Matter . | . . . . . Retrieved Components 4 | . 4 . . . Parts Scanalyzed . | . . . . . Part Schematics Acquired . | . . . . . Parts Damaged . | . . . . . Bothacking | -11 -10 -9 -8 -7 ------------ Run | Yrd Mat Mat Mat Fac Used RIF Installer . | . . . . . Robots Hacked . | . . . . . Non-combat . | . . . . . Combat . | . . . . . Robot Hacks Applied . | . . . . . Relay Couplers Released . | . . . . . Fabnet Peak Effective % . | . . . . . Robots Rewired . | . . . . . Allies Hacked . | . . . . . Hacks Repelled . | . . . . . Allies | -11 -10 -9 -8 -7 -------- Run | Yrd Mat Mat Mat Fac Total Allies . | . . . . . Largest Group . | . . . . . Highest-Rated Group . | . . . . . Highest-Rated Ally . | . . . . . Total Orders . | . . . . . Ally Attacks . | . . . . . Total Damage . | . . . . . Kills . | . . . . . Allies Corrupted . | . . . . . Allies Melted . | . . . . . Intel | -11 -10 -9 -8 -7 ------- Run | Yrd Mat Mat Mat Fac Robot Analysis Total . | . . . . . Derelict Logs Recovered . | . . . . . Drone Launches . | . . . . . Drone Recoveries . | . . . . . Exploration | -11 -10 -9 -8 -7 ------------- Run | Yrd Mat Mat Mat Fac Turns Passed 6121 | 50 1781 1649 1710 931 Spaces Moved 3085 | 34 907 762 869 513 Core 13 | 10 . 3 . . Treads 3072 | 24 907 759 869 513 Legs . | . . . . . Wheels . | . . . . . Hover . | . . . . . Flight . | . . . . . Fastest Speed 50 | 50 160 145 145 150 Average Speed 153 | 127 160 157 145 150 Slowest Speed 200 | 160 160 200 150 150 Overloaded Moves . | . . . . . Propulsion Burnouts . | . . . . . Robots Hopped . | . . . . . Cave-ins Triggered . | . . . . . Exploration Rate (%) 52 | 3 93 79 68 17 Regions Visited 4 Branch Regions . Pre-discovered Areas . | . . . . . Known Exits Taken . | . . . . . Unknown Exits Taken 4 | 1 1 1 1 . Scrap Searched . | . . . . . Spaces Dug . | . . . . . Terrain Destroyed 11 | . . . 8 3 Melee . | . . . . . Projectile 11 | . . . 8 3 AOE . | . . . . . Terrain Rammed . | . . . . . Walls Destroyed . | . . . . . Machines Disabled . | . . . . . Actions | -11 -10 -9 -8 -7 --------- Run | Yrd Mat Mat Mat Fac Total 4043 | 38 1143 1070 1175 617 Wait 461 | . 143 144 147 27 Move 3081 | 33 906 761 868 513 Hop . | . . . . . Pick Up 21 | . 2 3 12 4 Fast Attach 33 | 5 8 8 6 6 Attach 18 | . . 5 11 2 Detach 1 | . . . 1 . Swap 7 | . 1 6 . . Drop 41 | . 6 14 11 10 Fire 212 | . 46 72 68 26 Melee . | . . . . . Ram . | . . . . . Kick . | . . . . . Crush 14 | . 4 3 6 1 Escape Stasis . | . . . . . Rewire . | . . . . . Trap . | . . . . . Miscellaneous 154 | . 27 54 45 28 Route ------- -11/Scrapyard -10/Materials (discovered 4 exits: *Mat x3 / [*Min]) -9/Materials (discovered 3 exits: *Mat x3) -8/Materials -7/Factory History --------- Turn | Location | Event 1 | -11/Scrapyard | Upgraded with Propulsion slot (x1) 1 | -11/Scrapyard | Upgraded with Weapon slot (x1) 5 | -11/Scrapyard | Discovered new exit (range 15) 51 | -11/Scrapyard | Entered Materials 159 | -10/Materials | Discovered new exit (range 16) 318 | -10/Materials | Build established: Mutant 908 | -10/Materials | Discovered new exit (range 7) 1033 | -10/Materials | Repaired Med. Laser 1199 | -10/Materials | Discovered new exit (range 15) 1454 | -10/Materials | Reached level 2 1797 | -10/Materials | Discovered new exit (range 5) 1832 | -10/Materials | Entered another Materials area 1834 | -9/Materials | Reached level 3 2262 | -9/Materials | Reached level 4 2268 | -9/Materials | Upgraded with Utility slot (x2) 2354 | -9/Materials | Discovered new exit (range 10) 2740 | -9/Materials | Discovered new exit (range 17) 2946 | -9/Materials | Reached level 5 3120 | -9/Materials | Discovered new exit (range 16) 3481 | -9/Materials | Entered another Materials area 3483 | -8/Materials | Reached level 6 3490 | -8/Materials | Upgraded with Power slot (x1) 3490 | -8/Materials | Upgraded with Weapon slot (x1) 3774 | -8/Materials | Reached level 7 3952 | -8/Materials | Build established: Tank 4155 | -8/Materials | Reached level 8 4173 | -8/Materials | Upgraded with Utility slot (x1) 4302 | -8/Materials | Repaired Gauss Rifle 5000 | -8/Materials | Reached level 9 5077 | -8/Materials | Upgraded with Propulsion slot (x1) 5081 | -8/Materials | First assault squad dispatched 5155 | -8/Materials | Discovered new exit (range 12) 5191 | -8/Materials | Entered Factory 5193 | -7/Factory | Reached level 10 5267 | -7/Factory | Garrison activated, responded to threat 5942 | -7/Factory | Reached level 11 6122 | -7/Factory | Self-destructed Last Messages --------------- R-06 Scavenger collects Remote Datajack. R-06 Scavenger collects Imp. Heat Sink. K-01 Serf collects debris. Dropped Assault Cannon. Acquired Gauss Cannon. Slug penetrates Y-54 Guardian. Y-54 Guardian destroyed. Acquired 70 matter. Acquired 11 matter. Slammed into U-05 Engineer. U-05 Engineer destroyed. System corrupted: Component data lost. Dropped Gauss Rifle. Acquired Gauss Cannon. U-05 Engineer builds a Wall. Acquired Gauss Cannon. Dropped Hvy. Laser. System corrupted: Substantial component data lost. Acquired Gauss Rifle. Acquired 20 matter. Map ----- +----------------------------------------------------+ | # #????????????????????????????????? | | # """ """ #????????????????????????????????? | | # """ """ #????????????????????????????????? | | # """ """ #????????????????????????????????? | | # #????????????????????????????????? | | # ! #????????????????????????????????? | | #+########+##############????????????????????????? | | ??????????????????????? | | ??????????????????????? | | ??????????????????????? | | = ???????????????????????? | | ???????????????????????? | | ???????????????????????? | | ???????????????????????? | | #+########+####### #########+###?????????????????? | | # # #??# ?????????????????? | | # # #??# u """?#?????????????? | | """ # = # #??# u """"" #?????????????? | | # ] """" # #??# """"" #?????????????? | | """ # *| """" # #??# #?????????????? | | # [*| """" # #??# #?????????????? | | """ # [*| """" # #### !! #?????????????? | | # =="""" + + ! #?????????????? | | """ # !!"""" # # #?????????????? | | # "" ""%"""" # # #?????????????? | | ??? # ""S""%% + + @ #?????????????? | | ????# """" * ###### #?????????????? | | ????########### ##????##############?????????????? | | ?????????????####????????????????????????????????? | | ?????????????????????????????????????????????????? | | ?????????????????????????????????????????????????? | | ?????????????????????????????????????????????????? | | ?????????????????????????????????????????????????? | | ?????????????????????????????????????????????????? | | ?????????????????????????????????????????????????? | | ?????????????????????????????????????????????????? | | ?????????????????????????????????????????????????? | | ?????????????????????????????????????????????????? | | ?????????????????????????????????????????????????? | | ?????????????????????????????????????????????????? | | ?????????????????????????????????????????????????? | | ?????????????????????????????????????????????????? | | ?????????????????????????????????????????????????? | | ?????????????????????????????????????????????????? | | ?????????????????????????????????????????????????? | | ?????????????????????????????????????????????????? | | ?????????????????????????????????????????????????? | | ?????????????????????????????????????????????????? | | ?????????????????????????????????????????????????? | | ?????????????????????????????????????????????????? | +----------------------------------------------------+ Best States ------------- Heat Dissipation 53 Energy Generation 28 Energy Capacity 500 Matter Stores 300 Matter Capacity 300 Sight Range 17 Terrain Scan Density 10 Armor Coverage 300 Resistance: KI 20 Resistance: TH 20 Resistance: EX 20 Evasion (%) 50 Targeting Accuracy 8 Recoil Reduction 3 Item Schematics ----------------- None Robot Schematics ------------------ None Fabricated ------------ Nothing Alien Tech Used ----------------- None Achievements -------------- None Challenges ------------ None RPGLIKE | -11 -10 -9 -8 -7 --------- Run | Yrd Mat Mat Mat Fac Levels Raised 10 | . 1 3 4 2 XP Earned 18302 | 3000 1620 5528 5389 2765 XP Spent 17990 | 2710 1780 4225 6225 3050 Upgrades 54 | 8 14 13 15 4 Power Slot 1 | . . . 1 . Propulsion Slot 2 | 1 . . 1 . Utility Slot 3 | . . 2 1 . Weapon Slot 2 | 1 . . 1 . Core Integrity 18 | . 8 5 5 . Heat Dissipation 3 | 3 . . . . Energy Generation 1 | . . . 1 . Energy Storage 1 | . . . 1 . Inventory Capacity 3 | . 2 . . 1 Sight Range 1 | . 1 . . . Ranged Accuracy 4 | 3 . 1 . . KI Resistance % 4 | . 1 1 1 1 TH Resistance % 4 | . 1 1 1 1 EX Resistance % 4 | . 1 1 2 . KI Damage % 3 | . . 2 . 1 Protomatter Created 1255 | . 224 468 374 189 Integrity Restored 3160 | . 542 1121 937 560 Core 2548 | . 503 945 679 421 Parts 612 | . 39 176 258 139 Protomatter Decayed 123 | . 28 84 11 . Game ------ Seed CryofiberMyomerProtomatter Manual? 0 Play Time 00:44:46 Cumulative 27.2 hours Start 2024.08.09 @ 03:17:47 End 2024.10.15 @ 20:24:28 Sessions 3 Manual Loads 0 Difficulty Rogue Special Mode Winter2019/RPGLIKE Game No. 46 Rogue 46 Adventurer 0 Explorer 0 Win Type - Total 0 Types 0/0/0/0/0/0/0/0/0 Lore% 6 Gallery% 21 Achievement% 24 Wizard Run 0 Options --------- Layout 0 ASCII 0 Keyboard 0 Movement Mouse Keybinds 0 Fullscreen 1 Font 18/SmallcapsGlow Map View 76x50 Zoom Use 99% Tactical HUD 0 Map Filters NONE Filters NONE Steam 1 RUN: 33b88d9e-7b6e-45c9-aaa9-16f1e74aeb33